fUST/lending_fUST_20240731
["ID","MTS","AMOUNT","RATE_DAILY","PERIOD"]
[333742474,1722436249382,-500.0,0.00013698,2]
[333742475,1722436249391,-500.0,0.00013698,2]
[333742476,1722436249401,-500.0,0.00013698,2]
[333742477,1722436249411,-500.0,0.00013698,2]
[333742478,1722436249421,-500.0,0.00013698,2]
[333742479,1722436249431,-500.0,0.00013698,2]
[333742480,1722436249441,-500.0,0.00013698,2]
[333742481,1722436249451,-500.0,0.00013698,2]
[333742482,1722436249460,-663.55,0.00013698,2]
[333742483,1722436249470,-500.0,0.00013698,2]
[333742484,1722436249480,-500.0,0.00013698,2]
[333742485,1722436249490,-500.0,0.00013698,2]
[333742486,1722436249503,-500.0,0.00013698,2]
[333742487,1722436249514,-673.52,0.00013698,2]
[333742488,1722436249524,-500.0,0.00013698,2]
[333742489,1722436249534,-500.0,0.00013698,2]
[333742490,1722436249543,-593.98,0.00013698,2]
[333742491,1722436249553,-500.0,0.00013698,2]
[333742492,1722436249562,-500.0,0.00013698,2]
[333742493,1722436249572,-500.0,0.00013698,2]
[333742494,1722436249581,-500.0,0.00013698,2]
[333742495,1722436249591,-500.0,0.00013698,2]
[333742496,1722436249601,-529.77416453,0.00013698,2]
[333742497,1722436249610,-500.0,0.00013698,2]
[333742498,1722436249620,-501.75326931,0.00013698,2]
[333742499,1722436249629,-500.0,0.00013698,2]
[333742500,1722436249638,-500.0,0.00013698,2]
[333742501,1722436249647,-500.0,0.00013698,2]
[333742502,1722436249658,-500.0,0.00013698,2]
[333742503,1722436249668,-500.0,0.00013698,2]
[333742504,1722436249678,-500.0,0.00013698,2]
[333742505,1722436249688,-941.76,0.00013698,2]
[333742506,1722436249697,-500.0,0.00013698,2]
[333742507,1722436249707,-500.0,0.00013698,2]
[333742508,1722436249717,-500.0,0.00013698,2]
[333742509,1722436249728,-507.86488783,0.00013698,2]
[333742510,1722436249740,-500.0,0.00013698,2]
[333742511,1722436249751,-500.0,0.00013698,2]
[333742512,1722436249761,-804.7,0.00013698,2]
[333742513,1722436249772,-500.0,0.00013698,2]
[333742514,1722436249786,-500.0,0.00013698,2]
[333742515,1722436249796,-500.0,0.00013698,2]
[333742516,1722436249805,-607.37,0.00013698,2]
[333742517,1722436249816,-500.0,0.00013698,2]
[333742518,1722436249827,-500.0,0.00013698,2]
[333742519,1722436249836,-500.0,0.00013698,2]
[333742520,1722436249846,-948.79,0.00013698,2]
[333742521,1722436249856,-500.0,0.00013698,2]
[333742522,1722436249867,-500.0,0.00013698,2]
[333742523,1722436249877,-500.0,0.00013698,2]
[333742524,1722436249887,-500.0,0.00013698,2]
[333742525,1722436249896,-500.0,0.00013698,2]
[333742526,1722436249906,-976.01,0.00013698,2]
[333742527,1722436249916,-562.63,0.00013698,2]
[333742528,1722436249926,-500.0,0.00013698,2]
[333742529,1722436249937,-500.0,0.00013698,2]
[333742530,1722436249947,-383.2498869,0.00013698,2]
[333742531,1722436249956,-500.0,0.00013698,2]
[333742532,1722436249967,-500.0,0.00013698,2]
[333742533,1722436249977,-500.0,0.00013698,2]
[333742534,1722436249987,-1571.13,0.00013698,2]
[333742535,1722436249998,-511.27166137,0.00013698,2]
[333742536,1722436250008,-621.66820482,0.00013698,2]
[333742537,1722436250018,-500.0,0.00013698,2]
[333742538,1722436250028,-500.0,0.00013698,2]
[333742539,1722436250038,-500.0,0.00013698,2]
[333742540,1722436250047,-500.0,0.00013698,2]
[333742541,1722436250056,-500.0,0.00013698,2]
[333742542,1722436250066,-500.0,0.00013698,2]
[333742543,1722436250075,-500.0,0.00013698,2]
[333742544,1722436250085,-1328.76,0.00013698,2]
[333742545,1722436250096,-500.0,0.00013698,2]
[333742546,1722436250106,-375.01627498,0.00013698,2]
[333742547,1722436250116,-500.0,0.00013698,2]
[333742548,1722436250125,-500.0,0.00013698,2]
[333742549,1722436250134,-639.28,0.00013698,2]
[333742550,1722436250277,-368.20451606,0.00013698,2]
[333742551,1722436250287,-500.0,0.00013698,2]
[333742552,1722436250296,-685.75,0.00013698,2]
[333742553,1722436250305,-526.03271474,0.00013698,2]
[333742554,1722436250315,-941.24,0.00013698,2]
[333742555,1722436250325,-500.0,0.00013698,2]
[333742556,1722436250335,-500.0,0.00013698,2]
[333742557,1722436250345,-1053.96,0.00013698,2]
[333742558,1722436250355,-1605.03,0.00013698,2]
[333742559,1722436250366,-500.0,0.00013698,2]
[333742560,1722436250375,-500.0,0.00013698,2]
[333742561,1722436250385,-500.0,0.00013698,2]
[333742562,1722436250394,-574.09764681,0.00013698,2]
[333742563,1722436250404,-501.08699572,0.00013698,2]
[333742564,1722436250414,-784.05,0.00013698,2]
[333742565,1722436250424,-500.0,0.00013698,2]
[333742566,1722436250434,-922.81,0.00013698,2]
[333742567,1722436250444,-848.32,0.00013698,2]
[333742568,1722436250454,-507.82,0.00013698,2]
[333742569,1722436250463,-500.0,0.00013698,2]
[333742570,1722436250473,-500.0,0.00013698,2]
[333742571,1722436250483,-500.0,0.00013698,2]
[333742572,1722436250493,-500.0,0.00013698,2]
[333742573,1722436250505,-500.0,0.00013698,2]
[333742574,1722436250515,-2262.96,0.00013698,2]
[333742575,1722436250525,-1114.64,0.00013698,2]
[333742576,1722436250534,-500.0,0.00013698,2]
[333742577,1722436250544,-500.0,0.00013698,2]
[333742578,1722436250554,-500.0,0.00013698,2]
[333742579,1722436250564,-694.84,0.00013698,2]
[333742580,1722436250574,-500.0,0.00013698,2]
[333742581,1722436250584,-501.21265113,0.00013698,2]
[333742582,1722436250594,-500.0,0.00013698,2]
[333742583,1722436250604,-500.0,0.00013698,2]
[333742584,1722436250614,-500.0,0.00013698,2]
[333742585,1722436250623,-500.0,0.00013698,2]
[333742586,1722436250635,-500.0,0.00013698,2]
[333742587,1722436250645,-500.0,0.00013698,2]
[333742588,1722436250655,-500.0,0.00013698,2]
[333742589,1722436250665,-500.0,0.00013698,2]
[333742590,1722436250674,-500.0,0.00013698,2]
[333742591,1722436250684,-500.0,0.00013698,2]
[333742592,1722436250694,-500.0,0.00013698,2]
[333742593,1722436250704,-500.0,0.00013698,2]
[333742594,1722436250714,-500.0,0.00013698,2]
[333742595,1722436250724,-500.0,0.00013698,2]
[333742596,1722436250733,-500.0,0.00013698,2]
[333742597,1722436250744,-500.0,0.00013698,2]
[333742598,1722436250757,-2141.31,0.00013698,2]
[333742599,1722436250767,-611.28,0.00013698,2]
[333742600,1722436250778,-500.0,0.00013698,2]
[333742601,1722436250788,-1447.41,0.00013698,2]
[333742602,1722436250798,-439.70603138,0.00013698,2]
[333742603,1722436250808,-500.0,0.00013698,2]
[333742604,1722436250818,-500.0,0.00013698,2]
[333742605,1722436250829,-500.0,0.00013698,2]
[333742606,1722436250838,-521.20685002,0.00013698,2]
[333742607,1722436250848,-500.0,0.00013698,2]
[333742608,1722436250858,-618.14,0.00013698,2]
[333742609,1722436250868,-503.13608892,0.00013698,2]
[333742610,1722436250878,-500.0,0.00013698,2]
[333742611,1722436250888,-500.0,0.00013698,2]
[333742612,1722436250898,-593.0642781,0.00013698,2]
[333742613,1722436250908,-500.0,0.00013698,2]
[333742614,1722436250918,-239.71214,0.00013698,2]
[333742615,1722436250928,-239.71214,0.00013698,2]
[333742616,1722436250938,-500.0,0.00013698,2]
[333742617,1722436250948,-500.0,0.00013698,2]
[333742618,1722436250957,-239.71214,0.00013698,2]
[333742619,1722436250967,-500.0,0.00013698,2]
[333742620,1722436250977,-239.71214,0.00013698,2]
[333742621,1722436250987,-500.0,0.00013698,2]
[333742622,1722436250996,-500.0,0.00013698,2]
[333742623,1722436251008,-500.0,0.00013698,2]
[333742624,1722436251017,-1435.27,0.00013698,2]
[333742625,1722436251027,-500.0,0.00013698,2]
[333742626,1722436251037,-803.86,0.00013698,2]
[333742627,1722436251046,-500.0,0.00013698,2]
[333742628,1722436251056,-500.0,0.00013698,2]
[333742629,1722436251066,-500.0,0.00013698,2]
[333742630,1722436251076,-151.0,0.00013698,2]
[333742631,1722436251086,-151.0,0.00013698,2]
[333742632,1722436251096,-11813.21,0.00013698,2]
[333742633,1722436251105,-500.0,0.00013698,2]
[333742634,1722436251114,-1061.19,0.00013698,2]
[333742635,1722436251123,-500.0,0.00013698,2]
[333742636,1722436251133,-151.0,0.00013698,2]
[333742637,1722436251142,-151.0,0.00013698,2]
[333742638,1722436251152,-846.32,0.00013698,2]
[333742639,1722436251162,-500.0,0.00013698,2]
[333742640,1722436251172,-1329.77,0.00013698,2]
[333742641,1722436251182,-500.0,0.00013698,2]
[333742642,1722436251192,-500.0,0.00013698,2]
[333742643,1722436251202,-1959.37,0.00013698,2]
[333742644,1722436251211,-1096.77,0.00013698,2]
[333742645,1722436251221,-500.0,0.00013698,2]
[333742646,1722436251231,-2234.55,0.00013698,2]
[333742647,1722436251241,-500.0,0.00013698,2]
[333742648,1722436251253,-500.0,0.00013698,2]
[333742649,1722436251263,-781.62,0.00013698,2]
[333742650,1722436251274,-1859.11,0.00013698,2]
[333742651,1722436251284,-500.0,0.00013698,2]
[333742652,1722436251294,-1887.88,0.00013698,2]
[333742653,1722436251304,-546.72,0.00013698,2]
[333742654,1722436251314,-500.0,0.00013698,2]
[333742655,1722436251325,-345.2395312,0.00013698,2]
[333742656,1722436251335,-500.0,0.00013698,2]
[333742657,1722436251344,-500.0,0.00013698,2]
[333742658,1722436251354,-1037.88,0.00013698,2]
[333742659,1722436251363,-6350.45,0.00013698,2]
[333742660,1722436251372,-205.54255952,0.00013698,2]
[333742661,1722436251382,-500.0,0.00013698,2]
[333742662,1722436251392,-500.0,0.00013698,2]
[333742663,1722436251401,-500.0,0.00013698,2]
[333742664,1722436251411,-2915.69,0.00013698,2]
[333742665,1722436251421,-1339.68,0.00013698,2]
[333742666,1722436251431,-3777.9,0.00013698,2]
[333742667,1722436251441,-599.7,0.00013698,2]
[333742668,1722436251452,-1280.32,0.00013698,2]
[333742669,1722436251462,-708.71,0.00013698,2]
[333742670,1722436251473,-1357.06,0.00013698,2]
[333742671,1722436251483,-737.52,0.00013698,2]
[333742672,1722436251492,-1109.13,0.00013698,2]
[333742673,1722436251504,-500.0,0.00013698,2]
[333742674,1722436251514,-1695.04,0.00013698,2]
[333742675,1722436251524,-557.54,0.00013698,2]
[333742676,1722436251535,-1515.2,0.00013698,2]
[333742677,1722436251545,-848.0,0.00013698,2]
[333742678,1722436251555,-798.49,0.00013698,2]
[333742679,1722436251565,-500.0,0.00013698,2]
[333742680,1722436251574,-229.03859026,0.00013698,2]
[333742681,1722436251585,-1679.98,0.00013698,2]
[333742682,1722436251594,-500.0,0.00013698,2]
[333742683,1722436251604,-500.0,0.00013698,2]
[333742684,1722436251614,-633.19,0.00013698,2]
[333742685,1722436251624,-1590.02,0.00013698,2]
[333742686,1722436251633,-500.0,0.00013698,2]
[333742687,1722436251643,-445.28960611,0.00013698,2]
[333742688,1722436251653,-500.0,0.00013698,2]
[333742689,1722436251663,-610.27,0.00013698,2]
[333742690,1722436251673,-500.0,0.00013698,2]
[333742691,1722436251683,-546.960679,0.00013698,2]
[333742692,1722436251693,-500.0,0.00013698,2]
[333742693,1722436251703,-546.960679,0.00013698,2]
[333742694,1722436251713,-500.0,0.00013698,2]
[333742695,1722436251723,-961.5,0.00013698,2]
[333742696,1722436251733,-300.0,0.00013698,2]
[333742697,1722436251743,-550.74,0.00013698,2]
[333742698,1722436251755,-546.960679,0.00013698,2]
[333742699,1722436251765,-546.960679,0.00013698,2]
[333742700,1722436251774,-500.0,0.00013698,2]
[333742701,1722436251787,-1625.27,0.00013698,2]
[333742702,1722436251796,-621.9,0.00013698,2]
[333742703,1722436251805,-2044.97,0.00013698,2]
[333742704,1722436251815,-950.0,0.00013698,2]
[333742705,1722436251825,-704.75,0.00013698,2]
[333742706,1722436251835,-500.0,0.00013698,2]
[333742707,1722436251845,-944.75,0.00013698,2]
[333742708,1722436251856,-534.79,0.00013698,2]
[333742709,1722436251867,-500.0,0.00013698,2]
[333742710,1722436251877,-552.27963361,0.00013698,2]
[333742711,1722436251887,-500.0,0.00013698,2]
[333742712,1722436251896,-500.0,0.00013698,2]
[333742713,1722436251905,-1474.64,0.00013698,2]
[333742714,1722436251915,-500.0,0.00013698,2]
[333742715,1722436251925,-500.0,0.00013698,2]
[333742716,1722436251935,-3337.57,0.00013698,2]
[333742717,1722436251945,-500.0,0.00013698,2]
[333742718,1722436251955,-500.0,0.00013698,2]
[333742719,1722436251965,-500.0,0.00013698,2]
[333742720,1722436251974,-1441.6,0.00013698,2]
[333742721,1722436251984,-500.0,0.00013698,2]
[333742722,1722436251994,-500.0,0.00013698,2]
[333742723,1722436252007,-613.94,0.00013698,2]
[333742724,1722436252017,-2217.81,0.00013698,2]
[333742725,1722436252027,-3785.8,0.00013698,2]
[333742726,1722436252038,-1805.67,0.00013698,2]
[333742727,1722436252047,-692.38,0.00013698,2]
[333742728,1722436252056,-500.0,0.00013698,2]
[333742729,1722436252066,-200.0,0.00013698,2]
[333742730,1722436252075,-8958.39,0.00013698,2]
[333742731,1722436252086,-1032.38,0.00013698,2]
[333742732,1722436252096,-500.0,0.00013698,2]
[333742733,1722436252106,-9981.93,0.00013698,2]
[333742734,1722436252116,-586.45,0.00013698,2]
[333742735,1722436252125,-1316.61,0.00013698,2]
[333742736,1722436252135,-500.0,0.00013698,2]
[333742737,1722436252146,-670.42,0.00013698,2]
[333742738,1722436252156,-500.0,0.00013698,2]
[333742739,1722436252167,-500.0,0.00013698,2]
[333742740,1722436252177,-500.0,0.00013698,2]
[333742741,1722436252187,-500.0,0.00013698,2]
[333742742,1722436252196,-500.0,0.00013698,2]
[333742743,1722436252207,-500.0,0.00013698,2]
[333742744,1722436252217,-500.0,0.00013698,2]
[333742745,1722436252226,-500.0,0.00013698,2]
[333742746,1722436252236,-606.52,0.00013698,2]
[333742747,1722436252245,-3426.69,0.00013698,2]
[333742748,1722436252259,-1701.64,0.00013698,2]
[333742749,1722436252268,-522.96,0.00013698,2]
[333742750,1722436252278,-500.0,0.00013698,2]
[333742751,1722436252288,-1207.01,0.00013698,2]
[333742752,1722436252298,-900.84,0.00013698,2]
[333742753,1722436252307,-500.0,0.00013698,2]
[333742754,1722436252317,-500.0,0.00013698,2]
[333742755,1722436252327,-500.0,0.00013698,2]
[333742756,1722436252339,-510.548937,0.00013699,2]
[333742757,1722436252349,-3000.0,0.00013699,2]
[333742758,1722436252359,-151.0,0.00013699,2]
[333742759,1722436252369,-275.816603,0.00013699,2]
[333742760,1722436252379,-151.0,0.00013699,2]
[333742761,1722436252389,-151.0,0.00013699,2]
[333742762,1722436252399,-151.0,0.00013699,2]
[333742763,1722436252410,-151.0,0.00013699,2]
[333742764,1722436252420,-500.0,0.00013699,2]
[333742765,1722436252431,-500.0,0.00013699,2]
[333742766,1722436252443,-433.87730341,0.00013699,2]
[333742767,1722436252453,-150.112233,0.000137,2]
[333742768,1722436252463,-150.112233,0.000137,2]
[333742769,1722436252474,-150.112233,0.000137,2]
[333742770,1722436252484,-294.1445528,0.00013773,2]
[333742771,1722436252493,-153.0,0.00013773,2]
[333742772,1722436252504,-153.0,0.00013773,2]
[333742773,1722436252514,-206.8816348,0.00013773,2]
[333742774,1722436252524,-153.0,0.00013773,2]
[333742775,1722436252534,-153.0,0.00013773,2]
[333742776,1722436252544,-206.8816348,0.00013773,2]
[333742777,1722436252554,-153.0,0.00013773,2]
[333742778,1722436252564,-153.0,0.00013773,2]
[333742779,1722436252573,-153.0,0.00013773,2]
[333742780,1722436252583,-587.8812868,0.00013773,2]
[333742781,1722436252592,-206.8816348,0.00013773,2]
[333742782,1722436252602,-306.0,0.00013773,2]
[333742783,1722436252611,-153.0,0.00013773,2]
[333742784,1722436252621,-206.8816348,0.00013773,2]
[333742785,1722436252630,-153.0,0.00013773,2]
[333742786,1722436252640,-153.0,0.00013773,2]
[333742787,1722436252649,-153.0,0.00013773,2]
[333742788,1722436252659,-206.8816348,0.00013773,2]
[333742789,1722436252668,-153.8201104,0.00013773,2]
[333742790,1722436252678,-294.1445528,0.00013773,2]
[333742791,1722436252688,-153.0,0.00013773,2]
[333742792,1722436252697,-153.0,0.00013773,2]
[333742793,1722436252707,-153.0,0.00013773,2]
[333742794,1722436252775,-206.8816348,0.00013773,2]
[333742795,1722436252785,-206.8816348,0.00013773,2]
[333742796,1722436252795,-206.8816348,0.00013773,2]
[333742797,1722436252806,-206.8816348,0.00013773,2]
[333742798,1722436252817,-287.13654267,0.00013787,2]
[333742799,1722436252828,-500.0,0.00013787,2]
[333742800,1722436252839,-500.0,0.00013787,2]
[333742801,1722436252850,-500.0,0.00013787,2]
[333742802,1722436252864,-500.0,0.00013787,2]
[333742803,1722436252875,-500.0,0.00013787,2]
[333742804,1722436252885,-255.55387869,0.00013787,2]
[333742805,1722436252900,-569.65583701,0.00013787,2]
[333742806,1722436252911,-500.0,0.00013787,2]
[333742807,1722436252921,-500.0,0.00013787,2]
[333742808,1722436252932,-500.0,0.00013787,2]
[333742809,1722436252942,-500.0,0.00013787,2]
[333742810,1722436252953,-500.0,0.00013787,2]
[333742811,1722436252963,-150.112233,0.000138,2]
[333742812,1722436252973,-150.112233,0.000138,2]
[333742813,1722436252986,-294.1445528,0.000138,2]
[333742814,1722436252996,-153.0,0.000138,2]
[333742815,1722436253014,-153.0,0.000138,2]
[333742816,1722436253025,-153.0,0.000138,2]
[333742817,1722436253034,-206.8816348,0.000138,2]
[333742818,1722436253044,-150.112233,0.000138,2]
[333742819,1722436253054,-151.0,0.00013805,2]
[333742820,1722436253064,-151.0,0.00013805,2]
[333742821,1722436253074,-150.0,0.00013806,2]
[333742822,1722436253084,-1410.0,0.00013806,2]
[333742823,1722436253093,-846.43871733,0.00013872,2]
[333742824,1722436253104,-587.0,0.00013885,2]
[333742825,1722436253113,-150.112233,0.000139,2]
[333742826,1722436253122,-150.112233,0.000139,2]
[333742827,1722436253132,-150.112233,0.000139,2]
[333742828,1722436253143,-151.0,0.00013961,2]
[333742829,1722436253152,-151.0,0.00013961,2]
[333742830,1722436253162,-500.0,0.00013961,2]
[333742831,1722436253172,-5498.33618071,0.00013962,2]
[333742832,1722436253181,-239.71214,0.00013962,2]
[333742833,1722436253191,-239.71214,0.00013962,2]
[333742834,1722436253202,-546.960679,0.00013962,2]
[333742835,1722436253211,-546.960679,0.00013962,2]
[333742836,1722436253221,-21993.3447228,0.00013962,2]
[333742837,1722436253232,-500.0,0.00013971,2]
[333742838,1722436253242,-500.0,0.00013971,2]
[333742839,1722436253254,-500.0,0.00013971,2]
[333742840,1722436253266,-500.0,0.00013971,2]
[333742841,1722436253275,-500.0,0.00013971,2]
[333742842,1722436253284,-500.0,0.00013971,2]
[333742843,1722436253293,-500.0,0.00013971,2]
[333742844,1722436253303,-500.0,0.00013971,2]
[333742845,1722436253312,-500.0,0.00013971,2]
[333742846,1722436253321,-500.0,0.00013971,2]
[333742847,1722436253330,-500.0,0.00013971,2]
[333742848,1722436253340,-500.0,0.00013971,2]
[333742849,1722436253350,-12073.59716603,0.00013972,5]
[333742850,1722436253360,-500.0,0.00013972,2]
[333742851,1722436253370,-500.0,0.00013972,2]
[333742852,1722436253380,-500.0,0.00013972,2]
[333742853,1722436253389,-500.0,0.00013972,2]
[333742854,1722436253399,-500.0,0.00013972,2]
[333742855,1722436253409,-500.0,0.00013972,2]
[333742856,1722436253419,-500.0,0.00013972,2]
[333742857,1722436253429,-500.0,0.00013972,2]
[333742858,1722436253439,-500.0,0.00013972,2]
[333742859,1722436253450,-500.0,0.00013972,2]
[333742860,1722436253459,-500.0,0.00013972,2]
[333742861,1722436253469,-1203.12,0.00013972,2]
[333742862,1722436253479,-500.0,0.00013972,2]
[333742863,1722436253488,-500.0,0.00013972,2]
[333742864,1722436253499,-500.0,0.00013972,2]
[333742865,1722436253512,-500.0,0.00013972,2]
[333742866,1722436253521,-500.0,0.00013972,2]
[333742867,1722436253532,-471.24004933,0.00013972,2]
[333742868,1722436253543,-500.0,0.00013972,2]
[333742869,1722436253552,-500.0,0.00013972,2]
[333742870,1722436253561,-500.0,0.00013972,2]
[333742871,1722436253570,-663.55,0.00013972,2]
[333742872,1722436253580,-383.5238438,0.00013972,2]
[333742873,1722436253589,-151.0,0.00013972,2]
[333742874,1722436253599,-151.0,0.00013972,2]
[333742875,1722436253609,-151.0,0.00013972,2]
[333742876,1722436253619,-151.0,0.00013972,2]
[333742877,1722436253628,-673.52,0.00013972,2]
[333742878,1722436253638,-593.98,0.00013972,2]
[333742879,1722436253648,-500.0,0.00013972,2]
[333742880,1722436253658,-500.0,0.00013972,2]
[333742881,1722436253667,-500.0,0.00013972,2]
[333742882,1722436253677,-500.0,0.00013972,2]
[333742883,1722436253687,-500.0,0.00013972,2]
[333742884,1722436253696,-500.0,0.00013972,2]
[333742885,1722436253705,-500.0,0.00013972,2]
[333742886,1722436253715,-500.0,0.00013972,2]
[333742887,1722436253724,-941.76,0.00013972,2]
[333742888,1722436253734,-500.0,0.00013972,2]
[333742889,1722436253744,-500.0,0.00013972,2]
[333742890,1722436253754,-500.0,0.00013972,2]
[333742891,1722436253763,-804.7,0.00013972,2]
[333742892,1722436253773,-500.0,0.00013972,2]
[333742893,1722436253784,-500.0,0.00013972,2]
[333742894,1722436253794,-500.0,0.00013972,2]
[333742895,1722436253803,-607.37,0.00013972,2]
[333742896,1722436253813,-500.0,0.00013972,2]
[333742897,1722436253823,-500.0,0.00013972,2]
[333742898,1722436253832,-948.79,0.00013972,2]
[333742899,1722436253841,-976.01,0.00013972,2]
[333742900,1722436253850,-562.63,0.00013972,2]
[333742901,1722436253862,-500.0,0.00013972,2]
[333742902,1722436253872,-500.0,0.00013972,2]
[333742903,1722436253881,-500.0,0.00013972,2]
[333742904,1722436253890,-1571.13,0.00013972,2]
[333742905,1722436253899,-500.0,0.00013972,2]
[333742906,1722436253908,-500.0,0.00013972,2]
[333742907,1722436253918,-500.0,0.00013972,2]
[333742908,1722436253927,-1328.76,0.00013972,2]
[333742909,1722436253937,-500.0,0.00013972,2]
[333742910,1722436253947,-500.0,0.00013972,2]
[333742911,1722436253956,-639.28,0.00013972,2]
[333742912,1722436253966,-500.0,0.00013972,2]
[333742913,1722436253975,-685.75,0.00013972,2]
[333742914,1722436253985,-941.24,0.00013972,2]
[333742915,1722436253996,-1053.96,0.00013972,2]
[333742916,1722436254007,-1605.03,0.00013972,2]
[333742917,1722436254018,-500.0,0.00013972,2]
[333742918,1722436254028,-500.0,0.00013972,2]
[333742919,1722436254037,-784.05,0.00013972,2]
[333742920,1722436254047,-500.0,0.00013972,2]
[333742921,1722436254056,-922.81,0.00013972,2]
[333742922,1722436254066,-848.32,0.00013972,2]
[333742923,1722436254076,-507.82,0.00013972,2]
[333742924,1722436254086,-500.0,0.00013972,2]
[333742925,1722436254096,-500.0,0.00013972,2]
[333742926,1722436254105,-500.0,0.00013972,2]
[333742927,1722436254115,-2262.96,0.00013972,2]
[333742928,1722436254125,-1114.64,0.00013972,2]
[333742929,1722436254134,-500.0,0.00013972,2]
[333742930,1722436254144,-521.44232075,0.00013972,2]
[333742931,1722436254153,-500.0,0.00013972,2]
[333742932,1722436254163,-694.84,0.00013972,2]
[333742933,1722436254173,-500.0,0.00013972,2]
[333742934,1722436254182,-500.0,0.00013972,2]
[333742935,1722436254191,-500.0,0.00013972,2]
[333742936,1722436254201,-500.0,0.00013972,2]
[333742937,1722436254211,-503.93951742,0.00013972,2]
[333742938,1722436254221,-500.0,0.00013972,2]
[333742939,1722436254231,-500.0,0.00013972,2]
[333742940,1722436254241,-500.0,0.00013972,2]
[333742941,1722436254253,-500.0,0.00013972,2]
[333742942,1722436254264,-500.0,0.00013972,2]
[333742943,1722436254273,-500.0,0.00013972,2]
[333742944,1722436254284,-502.08201003,0.00013972,2]
[333742945,1722436254293,-500.0,0.00013972,2]
[333742946,1722436254303,-2141.31,0.00013972,2]
[333742947,1722436254313,-611.28,0.00013972,2]
[333742948,1722436254323,-1447.41,0.00013972,2]
[333742949,1722436254332,-500.0,0.00013972,2]
[333742950,1722436254342,-500.0,0.00013972,2]
[333742951,1722436254352,-618.14,0.00013972,2]
[333742952,1722436254362,-500.0,0.00013972,2]
[333742953,1722436254371,-500.0,0.00013972,2]
[333742954,1722436254381,-500.0,0.00013972,2]
[333742955,1722436254391,-500.0,0.00013972,2]
[333742956,1722436254400,-239.71214,0.00013972,2]
[333742957,1722436254409,-500.0,0.00013972,2]
[333742958,1722436254419,-239.71214,0.00013972,2]
[333742959,1722436254428,-239.71214,0.00013972,2]
[333742960,1722436254438,-500.0,0.00013972,2]
[333742961,1722436254448,-239.71214,0.00013972,2]
[333742962,1722436254457,-239.71214,0.00013972,2]
[333742963,1722436254466,-239.71214,0.00013972,2]
[333742964,1722436254476,-399.81100406,0.00013972,2]
[333742965,1722436254486,-510.73546076,0.00013972,2]
[333742966,1722436254496,-500.0,0.00013972,2]
[333742967,1722436254507,-1435.27,0.00013972,2]
[333742968,1722436254517,-500.0,0.00013972,2]
[333742969,1722436254528,-803.86,0.00013972,2]
[333742970,1722436254538,-500.0,0.00013972,2]
[333742971,1722436254548,-500.0,0.00013972,2]
[333742972,1722436254558,-151.0,0.00013972,2]
[333742973,1722436254568,-11813.21,0.00013972,2]